bitfinex/quotes_SOLUSD_20260108
["timestamp","ask_amount","ask_price","bid_price","bid_amount"]
[1767880025577,2.4374324,134.16,134.13,0.68594389]
[1767880028260,9.89131998,134.16,134.13,0.68594389]
[1767880029665,8.13516716,134.15,134.12,0.68594389]
[1767880030164,0.68076563,134.15,134.12,0.68594389]
[1767880034184,9.73223622,134.16,134.12,0.68594389]
[1767880034485,10.39866788,134.16,134.12,0.68594389]
[1767880035975,2.45683856,134.15,134.12,0.68594389]
[1767880036290,0.66155354,134.14,134.11,0.67391295]
[1767880037088,8.11654303,134.14,134.11,0.67391295]
[1767880037596,0.18344888,134.13,134.1,0.67391295]
[1767880037769,10.39964017,134.14,134.1,0.67391295]
[1767880044793,2.27821902,134.15,134.11,0.67391295]
[1767880045092,10.39870971,134.16,134.11,0.67391295]
[1767880045888,10.39870971,134.16,134.12,0.67391295]
[1767880046176,2.27821902,134.14,134.11,0.67391295]
[1767880046378,2.93977256,134.14,134.11,0.67391295]
[1767880048601,2.27821902,134.14,134.11,0.67391295]
[1767880049094,9.732191,134.16,134.12,0.67391295]
[1767880050401,9.91081054,134.16,134.12,0.67391295]
[1767880052495,0.66155354,134.15,134.12,0.67391295]
[1767880054307,8.11591414,134.15,134.12,0.67391295]
[1767880055285,7.4543606,134.15,134.12,0.67391295]
[1767880056203,10.39848255,134.16,134.12,0.67391295]
[1767880060504,2.45705162,134.15,134.12,0.67391295]
[1767880060892,2.27821902,134.14,134.12,0.67391295]
[1767880062112,2.93956163,134.14,134.1,0.6885374]
[1767880062705,10.39480644,134.14,134.1,0.6885374]
[1767880065108,0.66621645,134.14,134.1,0.6885374]
[1767880065315,0.66621645,134.14,134.11,0.6885374]
[1767880068508,9.7327719,134.15,134.11,0.6885374]
[1767880068696,10.39898835,134.15,134.11,0.6885374]
[1767880069220,2.45705162,134.14,134.11,0.6885374]
[1767880069918,9.91219871,134.14,134.11,0.6885374]
[1767880072317,7.45458694,134.15,134.11,0.6885374]
[1767880074516,35.19959827,134.16,134.12,0.6885374]
[1767880074517,24.01847501,134.16,134.12,0.6885374]
[1767880074723,5.34431551,134.15,134.12,0.6885374]
[1767880074924,24.01847501,134.16,134.12,0.6885374]
[1767880075132,5.34431309,134.15,134.12,0.6885374]
[1767880075301,24.01847501,134.16,134.12,0.6885374]
[1767880075501,5.34491352,134.15,134.12,0.6885374]
[1767880075701,24.01847501,134.16,134.12,0.6885374]
[1767880075900,5.34491352,134.15,134.12,0.6885374]
[1767880076113,24.01847501,134.16,134.12,0.6885374]
[1767880076327,5.34491352,134.15,134.12,0.6885374]
[1767880076512,24.01847501,134.16,134.12,0.6885374]
[1767880076715,5.34559152,134.15,134.12,0.6885374]
[1767880076925,21.74025599,134.16,134.12,0.6885374]
[1767880077101,5.34559152,134.15,134.12,0.6885374]
[1767880077303,21.74025599,134.16,134.12,0.6885374]
[1767880077304,5.34637664,134.14,134.12,0.6885374]
[1767880077516,24.01847501,134.16,134.12,0.6885374]
[1767880077705,5.34637906,134.15,134.12,0.6885374]
[1767880077905,5.34637906,134.14,134.12,0.6885374]
[1767880078107,24.01847501,134.16,134.12,0.6885374]
[1767880078306,5.28475137,134.15,134.12,0.6885374]
[1767880078508,5.28475137,134.14,134.12,0.6885374]
[1767880078707,24.01847501,134.16,134.12,0.6885374]
[1767880078921,5.285667,134.15,134.12,0.6885374]
[1767880079130,5.285667,134.14,134.12,0.6885374]
[1767880079337,10.39847501,134.16,134.12,0.6885374]
[1767880079636,5.28679296,134.15,134.12,0.6885374]
[1767880079833,5.28679296,134.14,134.12,0.6885374]
[1767880080018,9.91142396,134.15,134.12,0.6885374]
[1767880080209,5.28502097,134.14,134.12,0.6885374]
[1767880080407,9.91142396,134.15,134.12,0.6885374]
[1767880080628,5.28628031,134.14,134.12,0.6885374]
[1767880080832,9.91142396,134.15,134.12,0.6885374]
[1767880081019,5.28628271,134.14,134.12,0.6885374]
[1767880081219,9.91142396,134.15,134.12,0.6885374]
[1767880081533,0.1836577,134.13,134.1,0.6885374]
[1767880082326,5.28685029,134.12,134.1,0.6885374]
[1767880082528,3.56332814,134.12,134.1,0.6885374]
[1767880082729,4.2198939,134.12,134.08,0.70838904]
[1767880083030,0.65656576,134.12,134.08,0.70838904]
[1767880083427,8.11271308,134.12,134.08,0.70838904]
[1767880085158,0.64729535,134.08,134.05,0.70838904]
[1767880085432,3.56332814,134.07,134.05,0.70838904]
[1767880086016,3.56332814,134.09,134.05,0.70838904]
[1767880086341,17.18332814,134.1,134.05,0.70838904]
[1767880086538,8.83913681,134.09,134.05,0.70838904]
[1767880086827,3.56332814,134.09,134.05,0.70838904]
[1767880087062,11.02189857,134.08,134.05,0.70838904]
[1767880087249,8.14786418,134.08,134.04,0.70838904]
[1767880087427,11.71119232,134.08,134.04,0.70838904]
[1767880094651,11.728723,134.09,134.05,0.70125292]
[1767880094957,3.67156096,134.08,134.05,0.70125292]
[1767880096247,4.26486454,134.07,134.04,0.70125292]
[1767880096446,11.72415751,134.07,134.04,0.70125292]
[1767880098064,0.11416585,134.06,134.03,0.90125292]
[1767880098239,11.73015047,134.07,134.04,0.70125292]
[1767880098439,3.67156096,134.06,134.03,0.90125292]
[1767880100063,11.73015047,134.07,134.04,0.70125292]
[1767880101544,0.10823282,134.06,134.03,0.90125292]
[1767880101744,11.13085393,134.07,134.04,0.70125292]
[1767880103155,0.7015364,134.06,134.03,0.90125292]
[1767880103663,4.26486454,134.06,134.03,0.90125292]
[1767880104945,26.81379779,134.07,134.04,0.70125292]
[1767880105152,30.37712593,134.07,134.04,0.70125292]
[1767880105854,7.45929297,134.07,134.04,0.70125292]
[1767880106367,7.56752579,134.07,134.04,0.70125292]
[1767880109262,11.13085393,134.07,134.04,0.70125292]
[1767880109866,4.26486454,134.06,134.03,0.90125292]
[1767880110763,0.11998082,134.03,134.0,0.2]
[1767880111066,0.68990588,134.02,134.0,0.2]
[1767880111750,11.02460229,134.03,134.0,0.90125292]
[1767880112352,7.46127415,134.03,134.0,0.90125292]
[1767880112965,7.46127415,134.03,134.01,0.70531217]
[1767880117260,7.46127415,134.03,134.0,0.90531217]
[1767880117454,11.13283511,134.03,134.0,0.90531217]
[1767880117855,7.56950697,134.03,134.0,0.90531217]
[1767880119355,3.56332814,134.02,134.0,0.2]
[1767880119676,11.72116419,134.03,134.0,0.90531217]
[1767880120674,0.11909061,134.02,134.0,0.2]
[1767880120974,3.68241875,134.02,134.0,0.2]
[1767880121458,8.15783605,134.03,134.0,0.90531217]
[1767880121777,11.72116419,134.03,134.0,0.90531217]
[1767880122162,3.68241875,134.02,134.0,0.2]
[1767880122366,3.68241875,134.02,133.98,0.2]
[1767880122367,3.56332814,134.01,133.98,0.2]
[1767880122574,3.56332814,134.0,133.98,0.2]
[1767880122781,7.7792705,134.01,133.98,0.2]
[1767880122984,3.56332814,134.0,133.98,0.2]
[1767880123868,11.34259864,134.01,133.98,0.90531217]
[1767880126686,11.02574319,134.01,133.98,0.90531217]
[1767880126888,11.12474319,134.01,133.98,0.90531217]
[1767880128489,24.74474319,134.01,133.98,0.90531217]
[1767880131995,0.099,134.01,133.98,0.90531217]
[1767880132169,3.56332814,134.01,133.99,0.70531217]
[1767880133797,3.66232814,134.01,133.98,0.90531217]
[1767880134289,3.87800503,134.0,133.98,0.2]
[1767880134482,3.66448491,133.99,133.98,0.2]
[1767880135086,3.66448491,133.99,133.97,0.2]
[1767880135285,3.56332814,133.98,133.96,0.90531217]
[1767880135685,17.18332814,133.98,133.96,0.90531217]
[1767880138382,13.62,133.98,133.96,0.90531217]
[1767880138603,17.18332814,133.98,133.96,0.90531217]
[1767880138900,13.62,133.98,133.96,0.90531217]
[1767880139597,11.12801576,133.99,133.96,0.90531217]
[1767880139802,13.62,133.99,133.97,0.70531217]
[1767880139997,11.34314555,134.0,133.97,0.70531217]
[1767880140201,24.96314555,134.0,133.97,0.70531217]
[1767880141985,3.56332814,134.02,133.98,0.70531217]
[1767880142188,24.64493098,134.02,133.98,0.70531217]
[1767880142488,23.36557168,134.02,133.98,0.70531217]
[1767880142688,23.46457168,134.02,133.98,0.70531217]
[1767880143901,7.46113192,134.03,134.0,0.69947024]
[1767880144086,0.099,134.03,134.0,2.28396884]
[1767880144289,0.099,134.03,134.0,2.98343908]
[1767880144507,0.099,134.03,134.0,0.69947024]
[1767880145409,0.099,134.03,133.99,3.00719619]
[1767880145591,0.10115677,134.01,133.97,10.4715007]
[1767880145794,0.10115677,134.01,133.98,0.72322735]
[1767880146000,2.28396884,134.02,133.98,0.72322735]
[1767880146202,0.31467689,134.01,133.97,7.46430451]
[1767880146399,0.31467689,134.01,133.97,10.4715007]
[1767880146709,2.28396884,133.98,133.95,0.1]
[1767880147011,2.28396884,133.96,133.95,0.1]
[1767880147220,13.62,133.98,133.95,0.1]
[1767880147391,2.28396884,133.97,133.95,0.1]
[1767880148417,30.0,133.96,133.95,0.1]
[1767880149395,2.28396884,133.97,133.95,0.1]
[1767880149798,9.74840569,133.97,133.95,0.1]
[1767880150309,7.46443685,133.97,133.95,0.1]
[1767880150618,18.65798506,134.0,133.95,0.82322735]
[1767880150825,15.90396884,133.98,133.95,0.82322735]
[1767880151211,2.28396884,133.96,133.95,0.1]
[1767880151530,2.28396884,133.96,133.94,0.82322735]
[1767880151732,2.28396884,133.97,133.94,0.82322735]
[1767880155413,9.7484583,133.97,133.94,0.82322735]
[1767880158115,23.38799159,133.98,133.94,0.82322735]
[1767880163820,15.92396884,133.98,133.95,0.72322735]
[1767880164504,23.38783758,133.98,133.94,0.82322735]
[1767880166036,23.38783758,133.98,133.95,0.72322735]
[1767880168022,6.73886874,133.98,133.95,0.72322735]
[1767880168739,37.30911905,134.02,133.96,0.72322735]
[1767880168740,2.28396884,134.01,133.96,0.72322735]
[1767880168927,15.92396884,134.01,133.96,0.72322735]
[1767880169241,23.5274961,134.01,133.97,0.72322735]
[1767880170336,21.24352726,134.01,133.97,0.72322735]
[1767880170530,23.5274961,134.01,133.97,0.72322735]
[1767880171843,21.24352726,134.01,133.97,0.72322735]
[1767880172042,23.5274961,134.01,133.97,0.72322735]
[1767880173247,21.24352726,134.01,133.97,0.72322735]
[1767880173541,0.69139843,134.0,133.96,8.15110958]
[1767880174117,0.69139843,134.0,133.96,10.43507842]
[1767880174339,0.69139843,134.0,133.97,0.68653938]
[1767880174823,0.69139843,134.0,133.96,8.15110958]
[1767880175028,0.69139843,134.0,133.97,0.68653938]
[1767880175926,23.38620147,134.01,133.97,0.68653938]
[1767880177250,9.74620147,134.01,133.97,0.68653938]
[1767880177745,7.46223263,134.01,133.97,0.68653938]
[1767880177934,9.88229973,134.01,133.97,0.68653938]
[1767880178552,23.52229973,134.01,133.97,0.68653938]
[1767880180129,0.7022039,134.03,133.98,0.68653938]
[1767880180341,13.64,134.02,133.98,0.68653938]
[1767880180646,16.0600671,134.02,133.98,0.68653938]
[1767880181230,23.52202241,134.02,133.98,0.68653938]
[1767880182755,21.23805357,134.02,133.98,0.68653938]
[1767880183053,23.52202241,134.02,133.98,0.68653938]
[1767880183546,23.38592415,134.02,133.98,0.68653938]
[1767880183750,7.46061958,134.04,133.99,0.68653938]
[1767880183946,5.29600925,134.03,133.99,0.68653938]
[1767880184149,0.69654284,134.03,133.99,0.68653938]
[1767880184963,8.15772283,134.03,133.99,0.68653938]
[1767880186354,10.44169167,134.03,133.99,0.68653938]
[1767880186551,2.28396884,134.02,133.99,0.68653938]
[1767880187656,2.97496328,134.01,133.98,0.68653938]
[1767880187952,2.28396884,134.01,133.98,0.68653938]
[1767880189956,9.74620473,134.01,133.98,0.68653938]
[1767880191756,8.16402201,134.02,133.98,0.68653938]
[1767880191940,10.44799085,134.02,133.98,0.68653938]
[1767880192759,2.4200671,134.01,133.98,0.68653938]
[1767880192957,26.11575035,134.02,133.95,62.58653938]
[1767880192958,2.42567154,133.99,133.95,62.58653938]
[1767880193269,2.42567154,133.99,133.95,0.68653938]
[1767880194343,9.88899265,133.99,133.95,0.68653938]
[1767880195064,15.90396884,134.0,133.95,8.15156668]
[1767880195238,13.62,134.0,133.96,0.68653938]
[1767880195655,23.50248251,134.01,133.96,0.68653938]
[1767880196065,7.46176004,134.02,133.98,0.68653938]
[1767880196354,23.50182714,134.02,133.98,0.68653938]
[1767880196535,0.69654284,134.01,133.97,2.97050822]
[1767880196741,0.69654284,134.01,133.98,0.68653938]
[1767880197353,8.15874628,134.01,133.98,0.68653938]
[1767880198156,13.62,134.02,133.98,0.68653938]
[1767880199853,21.08158972,134.02,133.98,8.15016923]
[1767880200068,21.08158972,134.02,133.99,0.68653938]
[1767880200454,13.62,134.02,133.99,0.68653938]
[1767880200666,21.08158424,134.02,133.99,0.68653938]
[1767880201366,10.44775698,134.02,133.97,7.46412356]
[1767880201582,2.98110568,134.0,133.94,82.94824971]
[1767880201757,2.28396884,133.99,133.95,7.46519669]
[1767880202072,2.28396884,133.99,133.94,7.56576021]
[1767880202369,2.28396884,133.98,133.94,0.1]
[1767880202571,2.28396884,133.96,133.94,0.1]
[1767880202772,0.4019906,133.96,133.94,0.1]
[1767880202972,0.24398155,133.95,133.94,0.1]
[1767880203178,0.4019906,133.96,133.94,0.1]
[1767880204740,3.57184466,133.96,133.94,0.1]
[1767880205067,3.57184466,133.96,133.94,0.75649208]
[1767880206651,3.57184466,133.95,133.94,0.1]
[1767880207664,11.13590033,133.96,133.94,0.1]
[1767880210177,0.099,133.96,133.94,0.1]
[1767880210355,4.16651479,133.95,133.94,1e-08]
[1767880210558,4.16651479,133.95,133.91,0.65649208]
[1767880210758,3.57184466,133.94,133.91,0.65649208]
[1767880211168,3.67580136,133.94,133.91,0.65649208]
[1767880212281,11.14206701,133.94,133.91,0.65649208]
[1767880212577,3.57184466,133.93,133.9,0.85649208]
[1767880213465,11.14206701,133.94,133.9,0.85649208]
[1767880213871,3.57184466,133.93,133.9,0.85649208]
[1767880214075,11.14206701,133.94,133.9,0.85649208]
[1767880214475,11.14206701,133.94,133.91,0.65649208]
[1767880214688,17.81152156,133.96,133.92,0.65649208]
[1767880215258,11.63611535,133.97,133.93,0.65649208]
[1767880215461,25.27611535,133.97,133.93,0.65649208]
[1767880215774,8.06427069,133.97,133.94,0.69882766]
[1767880216082,11.63611535,133.97,133.94,0.69882766]
[1767880216679,4.16651479,133.95,133.91,0.69882766]
[1767880217588,3.57184466,133.95,133.91,0.69882766]
[1767880218083,13.7439567,133.96,133.91,0.69882766]
[1767880218287,24.78096422,133.96,133.91,0.69882766]
[1767880218586,21.20911956,133.96,133.91,0.69882766]
[1767880218788,24.78096422,133.96,133.91,0.69882766]
[1767880219283,4.15679816,133.93,133.89,0.1]
[1767880219483,0.11357616,133.92,133.89,0.79882766]
[1767880219783,0.58023973,133.91,133.89,0.1]
[1767880221072,3.57184466,133.92,133.89,0.79882766]
[1767880221278,3.67084466,133.92,133.89,0.79882766]
[1767880221787,3.67084466,133.92,133.89,0.1]
[1767880221988,0.59467013,133.91,133.89,0.1]
[1767880223571,11.63877284,133.92,133.89,0.1]
[1767880225191,3.57184466,133.91,133.89,0.1]
[1767880225690,11.63877284,133.92,133.89,0.1]
[1767880227291,11.63877284,133.92,133.89,0.79882766]
[1767880227594,11.03909594,133.92,133.89,0.79882766]
[1767880227886,7.46725128,133.92,133.89,0.79882766]
[1767880229185,25.27836173,133.93,133.89,0.79882766]
[1767880229394,17.81152156,133.95,133.9,0.69882766]
[1767880229575,7.46619097,133.94,133.9,0.69882766]
[1767880230594,7.56519097,133.94,133.9,0.69882766]
[1767880231894,11.13703563,133.94,133.9,0.69882766]
[1767880232481,4.16651479,133.93,133.9,0.69882766]
[1767880233485,11.63771253,133.94,133.9,0.69882766]
[1767880234095,11.03803563,133.94,133.9,0.69882766]
[1767880234393,11.13703563,133.94,133.9,0.69882766]
[1767880235394,7.46619097,133.94,133.9,0.69882766]
[1767880236783,11.03803563,133.94,133.9,0.69882766]
[1767880237299,29.70310954,133.94,133.9,0.69882766]
[1767880237486,26.13126488,133.94,133.9,0.69882766]
[1767880237688,29.70310954,133.94,133.9,0.69882766]
[1767880238293,26.13126488,133.94,133.9,0.69882766]
[1767880238495,29.70310954,133.94,133.9,0.69882766]
[1767880239807,11.03803563,133.94,133.9,0.69882766]
[1767880240490,11.13703563,133.94,133.9,0.69882766]
[1767880241482,29.80210954,133.94,133.9,0.69882766]
[1767880241805,26.23026488,133.94,133.9,0.69882766]
[1767880241986,29.80210954,133.94,133.9,0.69882766]
[1767880247096,43.44210954,133.94,133.9,0.69882766]
[1767880247912,43.44210954,133.94,133.89,3.67184466]
[1767880247913,3.67580136,133.92,133.89,0.76251028]
[1767880248094,4.16160765,133.91,133.89,0.1]
[1767880248597,4.16160765,133.91,133.89,1e-08]
[1767880249211,0.58976299,133.91,133.89,1e-08]
[1767880249415,14.35688631,133.92,133.89,1e-08]
[1767880249713,4.28873097,133.91,133.88,1e-08]
[1767880250617,7.46825989,133.9,133.88,1e-08]
[1767880251415,7.46825989,133.9,133.88,0.66251029]
[1767880251618,8.1851462,133.9,133.87,0.2]
[1767880252189,0.71688631,133.89,133.87,0.2]
[1767880252820,7.46887011,133.89,133.87,0.2]
[1767880253232,8.18538286,133.9,133.87,0.2]
[1767880253530,8.18538286,133.9,133.87,0.86251028]
[1767880258428,0.71688631,133.89,133.87,0.2]
[1767880260122,25.39722752,133.9,133.87,0.86251028]
[1767880260310,0.71688631,133.93,133.88,0.66251028]
[1767880260516,40.48994088,133.93,133.88,0.66251028]
[1767880260823,26.84994088,133.93,133.88,0.66251028]
[1767880261021,26.84994088,133.93,133.89,0.66251028]
[1767880261530,0.71688631,133.92,133.89,0.66251028]
[1767880262919,7.46770218,133.91,133.89,0.66251028]
[1767880264034,7.46770218,133.91,133.88,0.71604953]
[1767880264225,7.46770218,133.91,133.89,0.71604953]
[1767880265140,7.46770218,133.91,133.88,0.66126105]
[1767880265141,8.15694838,133.91,133.88,0.66126105]
[1767880265310,0.6892462,133.9,133.87,0.86126105]
[1767880266111,2.97614016,133.9,133.87,0.86126105]
[1767880266312,7.46881768,133.89,133.87,0.86126105]
[1767880272536,2.97614016,133.88,133.86,0.1]
[1767880272715,0.6892462,133.87,133.84,0.1]
[1767880272921,2.94614017,133.87,133.84,0.76126105]
[1767880273623,39.78086189,133.89,133.84,0.76126105]
[1767880273930,2.28689396,133.88,133.84,0.76126105]
[1767880274315,7.46993351,133.87,133.84,0.76126105]
[1767880274515,13.64,133.91,133.86,0.66126105]
[1767880274733,7.68030544,133.9,133.86,0.66126105]
[1767880274932,2.97614016,133.9,133.86,0.66126105]
[1767880275234,0.6892462,133.89,133.86,0.66126105]
[1767880276434,8.15837081,133.89,133.86,0.66126105]
[1767880279722,0.6892462,133.88,133.85,0.66126105]
[1767880279924,10.44526477,133.89,133.85,0.66126105]
[1767880281244,0.6892462,133.88,133.85,0.66126105]
[1767880281947,10.44526477,133.89,133.85,0.66126105]
[1767880282243,8.15837081,133.89,133.85,0.66126105]
[1767880282840,15.92689396,133.9,133.85,0.66126105]
[1767880283146,24.08469447,133.9,133.86,0.66126105]
[1767880283524,0.6892462,133.89,133.86,0.66126105]
[1767880285747,0.6892462,133.89,133.85,0.66126105]
[1767880285748,2.97614016,133.88,133.85,0.66126105]
[1767880285936,2.28689396,133.87,133.85,0.66126105]
[1767880288952,10.44614765,133.87,133.84,62.0]
[1767880289126,10.44614765,133.87,133.84,62.66126105]
[1767880289449,0.6892462,133.86,133.84,62.0]
[1767880290227,2.97614016,133.87,133.84,62.66126105]
[1767880290721,2.97614016,133.88,133.85,0.66126105]
[1767880291335,0.6892462,133.88,133.85,0.66126105]
[1767880291530,2.28689396,133.88,133.85,0.66126105]
[1767880291854,2.97614016,133.88,133.85,0.66126105]
[1767880292554,10.45883511,133.89,133.85,0.66126105]
[1767880293149,10.45883511,133.89,133.86,0.71324063]
[1767880293438,2.28689396,133.89,133.86,0.71324063]
[1767880293955,2.98976225,133.89,133.86,0.71324063]
[1767880294752,0.70286829,133.89,133.86,0.71324063]
[1767880294958,2.98976225,133.89,133.86,0.71324063]
[1767880295451,0.70286829,133.89,133.86,0.71324063]
[1767880295650,2.98976225,133.89,133.86,0.71324063]
[1767880298062,2.98976225,133.87,133.84,8.28457818]
[1767880298225,0.70286829,133.86,133.84,0.1]
[1767880298429,0.70286829,133.86,133.84,7.57156705]
[1767880298631,2.28689396,133.87,133.84,8.28480768]
[1767880298831,2.98976225,133.88,133.84,8.28480768]
[1767880299128,2.98976225,133.88,133.85,8.18426942]
[1767880300261,2.98976225,133.88,133.85,0.71324063]
[1767880300429,2.98976225,133.88,133.84,8.2846589]
[1767880300624,2.98976225,133.88,133.85,0.71324063]
[1767880300860,0.70286829,133.9,133.86,0.71324063]
[1767880301067,0.70286829,133.88,133.85,7.47101287]
[1767880305840,0.70286829,133.88,133.85,8.1842535]
[1767880306033,0.70286829,133.88,133.85,26.8618777]
[1767880306341,16.62976225,133.9,133.86,0.71324063]
[1767880306541,0.70286829,133.89,133.86,0.71324063]
[1767880308156,16.62976225,133.9,133.87,0.71324063]
[1767880310978,2.28689396,133.89,133.87,0.71324063]
[1767880311470,2.98976225,133.89,133.85,0.71324063]
[1767880311642,2.98976225,133.89,133.86,8.18364459]
[1767880312158,2.28689396,133.89,133.87,0.71324063]
[1767880313589,2.28689396,133.88,133.87,0.71324063]
[1767880313772,2.28689396,133.89,133.87,0.71324063]
[1767880314474,2.98976225,133.89,133.86,8.18364459]
[1767880314783,2.98976225,133.89,133.86,0.71324063]
[1767880314991,2.98976225,133.88,133.85,8.1840365]
[1767880315187,2.98976225,133.88,133.85,0.71324063]
[1767880315489,2.98976225,133.88,133.85,8.18419582]
[1767880316085,0.70286829,133.88,133.85,8.18419582]
[1767880316286,2.98976225,133.88,133.85,8.18419582]
[1767880319870,0.70286829,133.88,133.85,8.18419582]
[1767880320382,2.98976225,133.87,133.84,8.28479414]
[1767880320690,2.98976225,133.88,133.85,0.71324063]
[1767880321066,0.70286829,133.87,133.84,8.28479414]
[1767880321579,2.98976225,133.88,133.85,0.71324063]
[1767880322494,10.45934559,133.88,133.85,0.71324063]
[1767880322703,0.66823489,133.85,133.84,0.1]
[1767880322870,2.28689396,133.85,133.82,7.5724494]
[1767880324998,2.28689396,133.85,133.83,0.69946755]
[1767880326480,3.57764578,133.85,133.83,0.69946755]
[1767880327498,4.09378585,133.86,133.83,0.69946755]
[1767880331074,3.57764578,133.85,133.83,0.69946755]
[1767880331495,0.51614007,133.86,133.83,0.69946755]
[1767880331793,4.09378585,133.86,133.83,0.69946755]
[1767880334396,0.51614007,133.86,133.83,0.69946755]
[1767880334599,4.09378585,133.86,133.83,0.69946755]
[1767880337508,11.56462995,133.86,133.83,0.69946755]
[1767880337688,3.57764578,133.84,133.82,0.79946755]
[1767880337994,3.54764577,133.84,133.82,0.79946755]
[1767880344204,3.54764577,133.84,133.82,0.1]
[1767880344205,4.06565663,133.84,133.82,0.1]
[1767880344988,0.51801086,133.84,133.82,0.1]
[1767880347206,4.09565664,133.84,133.82,0.1]
[1767880348194,21.11123968,133.85,133.82,0.1]
[1767880348195,4.27901296,133.83,133.82,0.1]
[1767880348888,3.57764578,133.83,133.82,0.1]
[1767880349093,4.28275473,133.84,133.82,0.1]
[1767880349811,0.51614007,133.83,133.82,0.1]
[1767880351309,0.70321926,133.86,133.82,0.79946755]
[1767880351497,0.70321926,133.86,133.82,8.27166134]
[1767880351706,0.70321926,133.86,133.83,0.69946755]
[1767880352314,0.70136718,133.84,133.82,0.1]
[1767880353392,0.60055195,133.82,133.8,0.1]
[1767880353598,0.5206515,133.81,133.8,0.1]
[1767880355015,3.57764578,133.82,133.8,0.1]
[1767880355321,25.3927883,133.83,133.8,0.75690018]
[1767880357107,0.70275381,133.83,133.8,0.75690018]
[1767880357296,4.28039959,133.83,133.8,0.75690018]
[1767880361123,4.28039959,133.83,133.8,8.23039002]
[1767880363613,4.28039959,133.83,133.8,0.75690018]
[1767880364096,4.27756677,133.81,133.8,0.1]
[1767880364301,4.27756677,133.81,133.78,0.65690018]
[1767880364514,3.57764578,133.8,133.78,0.65690018]
[1767880367121,11.75087518,133.81,133.78,0.65690018]
[1767880371131,8.1732294,133.81,133.78,0.65690018]
[1767880371432,11.75087518,133.81,133.78,0.65690018]
[1767880372034,3.90092193,133.8,133.77,0.65690018]
[1767880374136,0.32327615,133.8,133.77,8.13233576]
[1767880376133,0.70275381,133.82,133.78,0.65690018]
[1767880376432,0.32047166,133.81,133.78,0.65690018]
[1767880378016,3.89811744,133.81,133.78,0.65690018]
[1767880378616,0.32047166,133.81,133.78,0.65690018]
[1767880378941,3.89811744,133.81,133.78,0.65690018]
[1767880381832,0.69893099,133.8,133.77,7.47543558]
[1767880382133,4.28039959,133.81,133.78,0.65690018]
[1767880383931,3.57764578,133.8,133.78,0.65690018]
[1767880385929,3.89811744,133.8,133.78,0.65690018]
[1767880386128,11.37226519,133.8,133.77,0.71894317]
[1767880386646,0.69518424,133.77,133.75,0.1]
[1767880386853,0.29796553,133.76,133.75,0.1]
[1767880387537,2.59036036,133.76,133.73,0.81894317]
[1767880387944,0.29796553,133.76,133.73,8.29664926]
[1767880388120,9.76795288,133.77,133.73,0.81894317]
[1767880388729,9.76795288,133.77,133.73,0.1]
[1767880388730,3.00054019,133.75,133.73,0.1]
[1767880389042,2.29239483,133.74,133.71,0.1]
[1767880389443,0.69646256,133.73,133.71,0.1]
[1767880389626,2.29239483,133.74,133.71,0.81894317]
[1767880389829,2.29239483,133.74,133.71,0.1]
[1767880390039,2.29239483,133.74,133.71,0.81894317]
[1767880390537,2.29239483,133.73,133.71,0.1]
[1767880392047,0.66484868,133.74,133.71,0.81894317]
[1767880392239,13.66,133.74,133.71,0.81894317]
[1767880392435,2.95724351,133.75,133.72,0.71894317]
[1767880392631,2.29239483,133.75,133.72,0.71894317]
[1767880394257,2.39139483,133.75,133.72,0.71894317]
[1767880395462,2.29239483,133.74,133.71,0.81894317]
[1767880395636,2.39699673,133.73,133.71,0.1]
[1767880396137,0.66484868,133.74,133.71,0.81894317]
[1767880396352,2.29239483,133.73,133.71,0.81894317]
[1767880396735,2.26239484,133.73,133.71,0.81894317]
[1767880398743,2.26239484,133.73,133.71,0.1]
[1767880399537,0.099,133.73,133.71,0.1]
[1767880399854,2.39139483,133.73,133.71,0.1]
[1767880400058,2.29239483,133.73,133.71,0.81894317]
[1767880400252,15.95239483,133.74,133.72,0.71894317]
[1767880400760,15.95239483,133.74,133.71,0.81894317]
[1767880401658,16.61158502,133.74,133.71,0.81894317]
[1767880401952,2.29239483,133.73,133.71,0.1]
[1767880402257,2.29239483,133.72,133.71,0.1]
[1767880402784,2.29239483,133.72,133.69,7.57972063]
[1767880402785,2.39139483,133.72,133.69,7.57972063]
[1767880402942,2.29239483,133.7,133.69,0.1]
[1767880403668,2.26239484,133.7,133.69,0.1]
[1767880404288,0.56684868,133.72,133.69,0.1]
[1767880404570,2.29239483,133.71,133.69,0.1]
[1767880407052,2.39139483,133.71,133.69,0.1]
[1767880407566,2.29239483,133.7,133.69,0.1]
[1767880408359,2.85456502,133.7,133.68,17.55851755]
[1767880411549,0.46684868,133.71,133.68,17.55851755]
[1767880411763,2.75924351,133.71,133.68,17.55851755]
[1767880412258,2.75924351,133.71,133.68,16.55851755]
[1767880412958,2.29239483,133.7,133.68,16.55851755]
[1767880413866,2.75924351,133.71,133.68,17.28076988]